[Event "Titled Tuesday Blitz April 4 Early 2023"]
[White "Forgacs, Attila Jr."]
[Black "Mushini Ajay"]
[WhiteFideId "773654"]
[BlackFideId "35066188"]
[WhiteElo "2168"]
[BlackElo "2145"]
[Result "1/2-1/2"]
[Round "02"]
[TimeControl "180+2"]
[Date "2023.04.04"]
[WhiteClock "0:00:11"]
[BlackClock "0:00:09"]

1. e4 {[%clk 0:03:00]}  c5 {[%clk 0:02:58]} 2. Nf3 {[%clk 0:03:00]}  d6 {[%clk 0:02:57]} 3. d4 {[%clk 0:03:01]}  cxd4 {[%clk 0:02:58]} 4. Nxd4 {[%clk 0:03:02]}  Nf6 {[%clk 0:02:57]} 5. Nc3 {[%clk 0:03:02]}  g6 {[%clk 0:02:57]} 6. Be3 {[%clk 0:02:59]}  Bg7 {[%clk 0:02:58]} 7. f3 {[%clk 0:02:59]}  O-O {[%clk 0:02:57]} 8. Qd2 {[%clk 0:02:59]}  Nc6 {[%clk 0:02:55]} 9. g4 {[%clk 0:02:59]}  Nxd4 {[%clk 0:02:54]} 10. Bxd4 {[%clk 0:03:00]}  Be6 {[%clk 0:02:52]} 11. h4 {[%clk 0:03:01]}  d5 {[%clk 0:02:43]} 12. g5 {[%clk 0:02:55]}  Nh5 {[%clk 0:02:41]} 13. Bxg7 {[%clk 0:02:55]}  Nxg7 {[%clk 0:02:39]} 14. exd5 {[%clk 0:02:54]}  Bf5 {[%clk 0:02:37]} 15. O-O-O {[%clk 0:02:54]}  Rc8 {[%clk 0:02:36]} 16. Bd3 {[%clk 0:02:52]}  Qa5 {[%clk 0:02:26]} 17. Bxf5 {[%clk 0:02:40]}  Nxf5 {[%clk 0:02:24]} 18. h5 {[%clk 0:02:41]}  b5 {[%clk 0:02:11]} 19. hxg6 {[%clk 0:02:40]}  fxg6 {[%clk 0:02:09]} 20. d6 {[%clk 0:02:34]}  Rxc3 {[%clk 0:01:55]} 21. Qxc3 {[%clk 0:02:22]}  Qxc3 {[%clk 0:01:54]} 22. bxc3 {[%clk 0:02:23]}  Nxd6 {[%clk 0:01:54]} 23. Rhe1 {[%clk 0:02:15]}  Kf7 {[%clk 0:01:47]} 24. Re5 {[%clk 0:02:08]}  Rc8 {[%clk 0:01:42]} 25. Rd3 {[%clk 0:01:59]}  Rc4 {[%clk 0:01:33]} 26. Kd2 {[%clk 0:01:37]}  Ra4 {[%clk 0:01:16]} 27. Rxd6 {[%clk 0:01:30]}  exd6 {[%clk 0:01:14]} 28. Rxb5 {[%clk 0:01:31]}  Rxa2 {[%clk 0:01:10]} 29. Rb7+ {[%clk 0:01:31]}  Ke6 {[%clk 0:01:10]} 30. Rxh7 {[%clk 0:01:31]}  Kf5 {[%clk 0:01:09]} 31. Rd7 {[%clk 0:01:23]}  Ra6 {[%clk 0:01:08]} 32. Ke3 {[%clk 0:01:23]}  Kxg5 {[%clk 0:01:07]} 33. f4+ {[%clk 0:01:23]}  Kf5 {[%clk 0:01:06]} 34. Rb7 {[%clk 0:01:13]}  Rc6 {[%clk 0:00:52]} 35. Rb5+ {[%clk 0:01:13]}  Rc5 {[%clk 0:00:47]} 36. c4 {[%clk 0:00:47]}  Kg4 {[%clk 0:00:34]} 37. Rb4 {[%clk 0:00:42]}  a5 {[%clk 0:00:28]} 38. Ra4 {[%clk 0:00:42]}  Kf5 {[%clk 0:00:20]} 39. Kf3 {[%clk 0:00:41]}  Kf6 {[%clk 0:00:08]} 40. Ke4 {[%clk 0:00:41]}  Ke6 {[%clk 0:00:08]} 41. Kd4 {[%clk 0:00:37]}  Kf6 {[%clk 0:00:08]} 42. Ra1 {[%clk 0:00:35]}  Kf5 {[%clk 0:00:08]} 43. Rg1 {[%clk 0:00:30]}  Kf6 {[%clk 0:00:06]} 44. Rg3 {[%clk 0:00:29]}  Kf5 {[%clk 0:00:06]} 45. Rg5+ {[%clk 0:00:27]}  Kxf4 {[%clk 0:00:06]} 46. Rxg6 {[%clk 0:00:27]}  Rc6 {[%clk 0:00:06]} 47. Kd5 {[%clk 0:00:26]}  Rc5+ {[%clk 0:00:06]} 48. Kd4 {[%clk 0:00:25]}  Rc6 {[%clk 0:00:05]} 49. Rf6+ {[%clk 0:00:26]}  Kg5 {[%clk 0:00:04]} 50. Rf8 {[%clk 0:00:27]}  Ra6 {[%clk 0:00:04]} 51. Kc3 {[%clk 0:00:22]}  a4 {[%clk 0:00:05]} 52. Kb2 {[%clk 0:00:22]}  a3+ {[%clk 0:00:04]} 53. Ka2 {[%clk 0:00:23]}  Kg6 {[%clk 0:00:04]} 54. Rf3 {[%clk 0:00:22]}  Kg5 {[%clk 0:00:03]} 55. Rxa3 {[%clk 0:00:22]}  Rc6 {[%clk 0:00:04]} 56. Ra4 {[%clk 0:00:18]}  Kf5 {[%clk 0:00:05]} 57. Kb3 {[%clk 0:00:19]}  Ke5 {[%clk 0:00:06]} 58. Ra5+ {[%clk 0:00:18]}  Ke4 {[%clk 0:00:05]} 59. Rd5 {[%clk 0:00:18]}  Rb6+ {[%clk 0:00:04]} 60. Kc3 {[%clk 0:00:19]}  Rc6 {[%clk 0:00:05]} 61. Rd3 {[%clk 0:00:18]}  Ke5 {[%clk 0:00:03]} 62. Rd1 {[%clk 0:00:18]}  Ke6 {[%clk 0:00:04]} 63. Re1+ {[%clk 0:00:18]}  Kd7 {[%clk 0:00:05]} 64. Kd4 {[%clk 0:00:19]}  Kc7 {[%clk 0:00:06]} 65. c3 {[%clk 0:00:19]}  Ra6 {[%clk 0:00:06]} 66. Re7+ {[%clk 0:00:20]}  Kc6 {[%clk 0:00:06]} 67. Re8 {[%clk 0:00:20]}  Ra5 {[%clk 0:00:06]} 68. Rc8+ {[%clk 0:00:20]}  Kd7 {[%clk 0:00:07]} 69. Rb8 {[%clk 0:00:21]}  Rg5 {[%clk 0:00:07]} 70. Rb5 {[%clk 0:00:20]}  Rg4+ {[%clk 0:00:07]} 71. Kd3 {[%clk 0:00:21]}  Rg3+ {[%clk 0:00:08]} 72. Kc2 {[%clk 0:00:21]}  Rg2+ {[%clk 0:00:08]} 73. Kb3 {[%clk 0:00:22]}  Rg1 {[%clk 0:00:08]} 74. Rh5 {[%clk 0:00:22]}  Kc6 {[%clk 0:00:08]} 75. Rh8 {[%clk 0:00:21]}  Rb1+ {[%clk 0:00:09]} 76. Kc2 {[%clk 0:00:20]}  Rg1 {[%clk 0:00:09]} 77. Rh3 {[%clk 0:00:20]}  Rg2+ {[%clk 0:00:09]} 78. Kb3 {[%clk 0:00:19]}  Rg5 {[%clk 0:00:09]} 79. Rh8 {[%clk 0:00:18]}  Rf5 {[%clk 0:00:09]} 80. Rc8+ {[%clk 0:00:18]}  Kb6 {[%clk 0:00:10]} 81. Rb8+ {[%clk 0:00:17]}  Kc6 {[%clk 0:00:10]} 82. Kb4 {[%clk 0:00:17]}  Rg5 {[%clk 0:00:09]} 83. Rc8+ {[%clk 0:00:15]}  Kb6 {[%clk 0:00:09]} 84. Rb8+ {[%clk 0:00:16]}  Kc6 {[%clk 0:00:09]} 85. Ra8 {[%clk 0:00:14]}  Kb6 {[%clk 0:00:09]} 86. Rb8+ {[%clk 0:00:11]}  Kc6 {[%clk 0:00:09]} 1/2-1/2


[Site "https://www.chess.com"]

[Event "Titled Tuesday Blitz April 4 Early 2023"]
[White "Vakhidov, Shahzod"]
[Black "Garrido, Denis"]
[WhiteFideId "14205270"]
[BlackFideId "601217"]
[WhiteElo "2212"]
[BlackElo "2333"]
[Result "1-0"]
[Round "02"]
[TimeControl "180+2"]
[Date "2023.04.04"]
[WhiteClock "0:01:00"]
[BlackClock "0:01:04"]

1. Nf3 {[%clk 0:03:00]}  Nf6 {[%clk 0:02:59]} 2. g3 {[%clk 0:03:00]}  d5 {[%clk 0:02:58]} 3. Bg2 {[%clk 0:03:00]}  e6 {[%clk 0:02:59]} 4. O-O {[%clk 0:03:00]}  Be7 {[%clk 0:02:59]} 5. d4 {[%clk 0:03:01]}  O-O {[%clk 0:02:59]} 6. c4 {[%clk 0:03:02]}  c6 {[%clk 0:02:57]} 7. Qc2 {[%clk 0:03:02]}  b6 {[%clk 0:02:57]} 8. Nbd2 {[%clk 0:03:01]}  Bb7 {[%clk 0:02:56]} 9. e4 {[%clk 0:03:02]}  Na6 {[%clk 0:02:56]} 10. e5 {[%clk 0:02:45]}  Nd7 {[%clk 0:02:56]} 11. cxd5 {[%clk 0:02:30]}  Nb4 {[%clk 0:02:55]} 12. Qe4 {[%clk 0:02:18]}  Nxd5 {[%clk 0:02:51]} 13. Qg4 {[%clk 0:02:18]}  Kh8 {[%clk 0:02:36]} 14. Ne4 {[%clk 0:02:15]}  c5 {[%clk 0:02:31]} 15. Qh5 {[%clk 0:02:06]}  Qe8 {[%clk 0:02:05]} 16. dxc5 {[%clk 0:01:23]}  Nxc5 {[%clk 0:02:01]} 17. Nfg5 {[%clk 0:01:20]}  h6 {[%clk 0:01:57]} 18. Nd6 {[%clk 0:01:18]}  Bxd6 {[%clk 0:01:56]} 19. exd6 {[%clk 0:01:18]}  f6 {[%clk 0:01:44]} 20. Qxe8 {[%clk 0:01:12]}  Raxe8 {[%clk 0:01:45]} 21. Nf3 {[%clk 0:01:13]}  Rd8 {[%clk 0:01:44]} 22. Nd4 {[%clk 0:01:07]}  a6 {[%clk 0:01:35]} 23. b4 {[%clk 0:01:06]}  Rxd6 {[%clk 0:01:10]} 24. bxc5 {[%clk 0:01:03]}  bxc5 {[%clk 0:01:10]} 25. Nb3 {[%clk 0:01:02]}  c4 {[%clk 0:01:04]} 26. Ba3 {[%clk 0:01:00]} 1-0


[Site "https://www.chess.com"]

[Event "Titled Tuesday Blitz April 4 Early 2023"]
[White "Perrine, Dalton"]
[Black "I_KID_you_not"]
[WhiteFideId "2048434"]
[WhiteElo "2257"]
[BlackElo "2328"]
[Result "0-1"]
[Round "02"]
[TimeControl "180+2"]
[Date "2023.04.04"]
[WhiteClock "0:00:03"]
[BlackClock "0:00:18"]

1. Nf3 {[%clk 0:03:00]}  f5 {[%clk 0:02:58]} 2. d3 {[%clk 0:02:53]}  Nc6 {[%clk 0:02:58]} 3. d4 {[%clk 0:02:52]}  e6 {[%clk 0:02:57]} 4. g3 {[%clk 0:02:48]}  Nf6 {[%clk 0:02:56]} 5. Bg2 {[%clk 0:02:48]}  Be7 {[%clk 0:02:56]} 6. c4 {[%clk 0:02:48]}  d5 {[%clk 0:02:55]} 7. O-O {[%clk 0:02:42]}  Ne4 {[%clk 0:02:55]} 8. b3 {[%clk 0:02:37]}  h5 {[%clk 0:02:51]} 9. Bb2 {[%clk 0:02:25]}  h4 {[%clk 0:02:47]} 10. Nc3 {[%clk 0:02:13]}  hxg3 {[%clk 0:02:19]} 11. hxg3 {[%clk 0:01:45]}  Bf6 {[%clk 0:02:17]} 12. e3 {[%clk 0:01:33]}  b6 {[%clk 0:02:03]} 13. Ne2 {[%clk 0:01:25]}  g5 {[%clk 0:01:53]} 14. Ne5 {[%clk 0:01:19]}  Bxe5 {[%clk 0:01:36]} 15. dxe5 {[%clk 0:01:20]}  dxc4 {[%clk 0:01:35]} 16. Qxd8+ {[%clk 0:00:50]}  Nxd8 {[%clk 0:01:35]} 17. Nc3 {[%clk 0:00:35]}  cxb3 {[%clk 0:01:17]} 18. Nxe4 {[%clk 0:00:26]}  fxe4 {[%clk 0:01:16]} 19. Bxe4 {[%clk 0:00:27]}  Bb7 {[%clk 0:01:16]} 20. Bxb7 {[%clk 0:00:25]}  Nxb7 {[%clk 0:01:16]} 21. axb3 {[%clk 0:00:23]}  Na5 {[%clk 0:01:12]} 22. b4 {[%clk 0:00:17]}  Nc4 {[%clk 0:01:12]} 23. Bc3 {[%clk 0:00:12]}  Kd7 {[%clk 0:00:53]} 24. b5 {[%clk 0:00:11]}  c6 {[%clk 0:00:52]} 25. Rfd1+ {[%clk 0:00:11]}  Kc7 {[%clk 0:00:52]} 26. bxc6 {[%clk 0:00:09]}  Kxc6 {[%clk 0:00:53]} 27. Kg2 {[%clk 0:00:09]}  a5 {[%clk 0:00:51]} 28. Kf3 {[%clk 0:00:07]}  b5 {[%clk 0:00:49]} 29. Rac1 {[%clk 0:00:05]}  Rhc8 {[%clk 0:00:45]} 30. Ke2 {[%clk 0:00:06]}  Kb6 {[%clk 0:00:39]} 31. Bd4+ {[%clk 0:00:06]}  Ka6 {[%clk 0:00:39]} 32. Rh1 {[%clk 0:00:07]}  Rc7 {[%clk 0:00:38]} 33. Rh6 {[%clk 0:00:07]}  Rc6 {[%clk 0:00:38]} 34. Rg6 {[%clk 0:00:07]}  Rac8 {[%clk 0:00:29]} 35. Rxg5 {[%clk 0:00:08]}  b4 {[%clk 0:00:26]} 36. Rg7 {[%clk 0:00:08]}  Nb6 {[%clk 0:00:20]} 37. Rxc6 {[%clk 0:00:06]}  Rxc6 {[%clk 0:00:20]} 38. Rh7 {[%clk 0:00:04]}  a4 {[%clk 0:00:17]} 39. Rh1 {[%clk 0:00:05]}  a3 {[%clk 0:00:17]} 40. Kd3 {[%clk 0:00:05]}  Kb5 {[%clk 0:00:16]} 41. Rb1 {[%clk 0:00:04]}  Ka4 {[%clk 0:00:17]} 42. Bxb6 {[%clk 0:00:03]}  Rxb6 {[%clk 0:00:17]} 43. Kc4 {[%clk 0:00:04]}  Rc6+ {[%clk 0:00:17]} 44. Kd3 {[%clk 0:00:03]}  b3 {[%clk 0:00:18]} 0-1


[Site "https://www.chess.com"]

[Event "Titled Tuesday Blitz April 4 Early 2023"]
[White "Fernandez Siles, Luis"]
[Black "Ljukin, Sergei"]
[WhiteFideId "2209420"]
[BlackFideId "14102200"]
[WhiteElo "2195"]
[BlackElo "2312"]
[Result "0-1"]
[Round "02"]
[TimeControl "180+2"]
[Date "2023.04.04"]
[WhiteClock "0:00:08"]
[BlackClock "0:00:39"]

1. d4 {[%clk 0:03:00]}  d5 {[%clk 0:02:53]} 2. c4 {[%clk 0:03:00]}  c6 {[%clk 0:02:53]} 3. Nc3 {[%clk 0:03:00]}  Nf6 {[%clk 0:02:53]} 4. cxd5 {[%clk 0:03:00]}  cxd5 {[%clk 0:02:53]} 5. Bf4 {[%clk 0:03:01]}  Nc6 {[%clk 0:02:54]} 6. e3 {[%clk 0:03:01]}  Bf5 {[%clk 0:02:53]} 7. Qb3 {[%clk 0:03:00]}  Na5 {[%clk 0:02:54]} 8. Bb5+ {[%clk 0:03:00]}  Bd7 {[%clk 0:02:50]} 9. Qa4 {[%clk 0:03:00]}  e6 {[%clk 0:02:51]} 10. Nf3 {[%clk 0:02:58]}  a6 {[%clk 0:02:46]} 11. Bxd7+ {[%clk 0:02:56]}  Nxd7 {[%clk 0:02:46]} 12. O-O {[%clk 0:02:40]}  b5 {[%clk 0:02:46]} 13. Qc2 {[%clk 0:02:34]}  Rc8 {[%clk 0:02:44]} 14. Qe2 {[%clk 0:02:32]}  Bb4 {[%clk 0:02:39]} 15. Rfc1 {[%clk 0:02:22]}  Bxc3 {[%clk 0:02:34]} 16. Rxc3 {[%clk 0:02:16]}  Rxc3 {[%clk 0:02:34]} 17. bxc3 {[%clk 0:02:16]}  Nb6 {[%clk 0:02:35]} 18. h4 {[%clk 0:01:43]}  O-O {[%clk 0:02:33]} 19. h5 {[%clk 0:01:43]}  h6 {[%clk 0:02:32]} 20. Ne5 {[%clk 0:01:43]}  Qc8 {[%clk 0:02:19]} 21. Qg4 {[%clk 0:01:31]}  Kh7 {[%clk 0:02:11]} 22. Rc1 {[%clk 0:00:59]}  Nac4 {[%clk 0:02:10]} 23. Qe2 {[%clk 0:00:31]}  Nxe5 {[%clk 0:02:07]} 24. Bxe5 {[%clk 0:00:32]}  Nc4 {[%clk 0:01:59]} 25. Bf4 {[%clk 0:00:20]}  f6 {[%clk 0:01:20]} 26. e4 {[%clk 0:00:20]}  Qc6 {[%clk 0:01:14]} 27. exd5 {[%clk 0:00:19]}  Qxd5 {[%clk 0:01:15]} 28. Re1 {[%clk 0:00:19]}  Re8 {[%clk 0:01:14]} 29. Bc1 {[%clk 0:00:19]}  Nb6 {[%clk 0:01:08]} 30. Qg4 {[%clk 0:00:19]}  Qd7 {[%clk 0:00:52]} 31. Qg6+ {[%clk 0:00:19]}  Kh8 {[%clk 0:00:52]} 32. Bxh6 {[%clk 0:00:19]}  gxh6 {[%clk 0:00:52]} 33. Qxh6+ {[%clk 0:00:19]}  Qh7 {[%clk 0:00:50]} 34. Qxf6+ {[%clk 0:00:19]}  Qg7 {[%clk 0:00:50]} 35. Qf3 {[%clk 0:00:17]}  Nd5 {[%clk 0:00:46]} 36. Qe4 {[%clk 0:00:15]}  Nxc3 {[%clk 0:00:44]} 37. Qc6 {[%clk 0:00:14]}  Rg8 {[%clk 0:00:41]} 38. g3 {[%clk 0:00:12]}  Qxd4 {[%clk 0:00:40]} 39. Kg2 {[%clk 0:00:09]}  Qd5+ {[%clk 0:00:39]} 40. Qxd5 {[%clk 0:00:09]}  exd5 {[%clk 0:00:40]} 41. Re6 {[%clk 0:00:08]}  Rd8 {[%clk 0:00:38]} 42. Rxa6 {[%clk 0:00:08]}  d4 {[%clk 0:00:39]} 43. g4 {[%clk 0:00:07]}  d3 {[%clk 0:00:39]} 44. g5 {[%clk 0:00:08]}  d2 {[%clk 0:00:39]} 45. Rh6+ {[%clk 0:00:07]}  Kg8 {[%clk 0:00:39]} 46. Rg6+ {[%clk 0:00:07]}  Kf8 {[%clk 0:00:39]} 47. Rf6+ {[%clk 0:00:08]}  Ke7 {[%clk 0:00:39]} 0-1


[Site "https://www.chess.com"]

[Event "Titled Tuesday Blitz April 4 Early 2023"]
[White "Terletsky, Oleg"]
[Black "Ovezdurdyyeva, Jemal"]
[WhiteFideId "14116774"]
[BlackFideId "14001888"]
[WhiteElo "2084"]
[BlackElo "2043"]
[Result "0-1"]
[Round "02"]
[TimeControl "180+2"]
[Date "2023.04.04"]
[WhiteClock "0:00:01"]
[BlackClock "0:00:48"]

1. e4 {[%clk 0:03:00]}  d6 {[%clk 0:02:59]} 2. d4 {[%clk 0:03:00]}  Nf6 {[%clk 0:02:59]} 3. Nc3 {[%clk 0:03:01]}  g6 {[%clk 0:02:59]} 4. f4 {[%clk 0:03:01]}  c6 {[%clk 0:03:00]} 5. Nf3 {[%clk 0:03:01]}  b5 {[%clk 0:03:00]} 6. e5 {[%clk 0:02:58]}  dxe5 {[%clk 0:02:58]} 7. fxe5 {[%clk 0:02:55]}  Nd5 {[%clk 0:02:58]} 8. Ne4 {[%clk 0:02:54]}  Bg7 {[%clk 0:02:57]} 9. c3 {[%clk 0:02:52]}  O-O {[%clk 0:02:58]} 10. Bd3 {[%clk 0:02:51]}  f6 {[%clk 0:02:58]} 11. O-O {[%clk 0:02:38]}  Nd7 {[%clk 0:02:57]} 12. e6 {[%clk 0:02:27]}  N7b6 {[%clk 0:02:53]} 13. Nc5 {[%clk 0:02:27]}  Qd6 {[%clk 0:02:48]} 14. Qe1 {[%clk 0:02:09]}  Nc7 {[%clk 0:02:42]} 15. Qh4 {[%clk 0:01:39]}  Nxe6 {[%clk 0:02:41]} 16. Nxe6 {[%clk 0:01:14]}  Bxe6 {[%clk 0:02:41]} 17. Bh6 {[%clk 0:01:07]}  Nd5 {[%clk 0:02:34]} 18. Rae1 {[%clk 0:01:01]}  Bf7 {[%clk 0:01:39]} 19. Bxg7 {[%clk 0:00:55]}  Kxg7 {[%clk 0:01:39]} 20. Re4 {[%clk 0:00:47]}  Rae8 {[%clk 0:01:35]} 21. Rfe1 {[%clk 0:00:47]}  Nc7 {[%clk 0:01:26]} 22. Qh3 {[%clk 0:00:40]}  Bxa2 {[%clk 0:01:15]} 23. Rh4 {[%clk 0:00:39]}  Bg8 {[%clk 0:01:15]} 24. Rg4 {[%clk 0:00:29]}  e5 {[%clk 0:01:08]} 25. dxe5 {[%clk 0:00:17]}  Qxd3 {[%clk 0:01:05]} 26. exf6+ {[%clk 0:00:12]}  Kh8 {[%clk 0:01:01]} 27. Rf1 {[%clk 0:00:03]}  Rxf6 {[%clk 0:00:57]} 28. Qh4 {[%clk 0:00:03]}  Ref8 {[%clk 0:00:55]} 29. Rg3 {[%clk 0:00:01]}  Nd5 {[%clk 0:00:50]} 30. h3 {[%clk 0:00:01]}  Nf4 {[%clk 0:00:48]} 0-1


[Site "https://www.chess.com"]

[Event "Titled Tuesday Blitz April 4 Early 2023"]
[White "NiklasSchmider"]
[Black "Mouhamad, Joachim"]
[BlackFideId "656410"]
[WhiteElo "2316"]
[BlackElo "2125"]
[Result "1-0"]
[Round "02"]
[TimeControl "180+2"]
[Date "2023.04.04"]
[WhiteClock "0:00:10"]
[BlackClock "0:00:08"]

1. e4 {[%clk 0:03:00]}  c5 {[%clk 0:02:59]} 2. Nf3 {[%clk 0:03:00]}  Nc6 {[%clk 0:02:59]} 3. d4 {[%clk 0:02:59]}  cxd4 {[%clk 0:03:00]} 4. Nxd4 {[%clk 0:03:00]}  g6 {[%clk 0:03:00]} 5. c4 {[%clk 0:02:59]}  Nf6 {[%clk 0:02:58]} 6. Nc3 {[%clk 0:02:58]}  d6 {[%clk 0:02:58]} 7. Be2 {[%clk 0:02:57]}  Nxd4 {[%clk 0:02:58]} 8. Qxd4 {[%clk 0:02:56]}  Bg7 {[%clk 0:02:59]} 9. Be3 {[%clk 0:02:56]}  O-O {[%clk 0:02:58]} 10. Qd2 {[%clk 0:02:55]}  a5 {[%clk 0:02:59]} 11. O-O {[%clk 0:02:51]}  a4 {[%clk 0:02:59]} 12. Rfc1 {[%clk 0:02:30]}  Qa5 {[%clk 0:02:59]} 13. Rab1 {[%clk 0:02:29]}  Be6 {[%clk 0:02:58]} 14. b4 {[%clk 0:02:24]}  axb3 {[%clk 0:02:58]} 15. axb3 {[%clk 0:02:25]}  Qb4 {[%clk 0:02:54]} 16. Nd5 {[%clk 0:02:18]}  Qxd2 {[%clk 0:02:22]} 17. Nxe7+ {[%clk 0:02:17]}  Kh8 {[%clk 0:02:22]} 18. Bxd2 {[%clk 0:02:17]}  Nxe4 {[%clk 0:02:22]} 19. Bb4 {[%clk 0:02:16]}  Bd4 {[%clk 0:02:10]} 20. Bf3 {[%clk 0:01:54]}  Nxf2 {[%clk 0:02:07]} 21. Bc3 {[%clk 0:01:53]}  Bxc3 {[%clk 0:01:50]} 22. Rxc3 {[%clk 0:01:54]}  Rfe8 {[%clk 0:01:36]} 23. Nd5 {[%clk 0:01:34]}  Bf5 {[%clk 0:01:25]} 24. Rf1 {[%clk 0:01:28]}  Ne4 {[%clk 0:00:52]} 25. Re3 {[%clk 0:00:43]}  Nd2 {[%clk 0:00:50]} 26. Rfe1 {[%clk 0:00:40]}  Nxf3+ {[%clk 0:00:48]} 27. gxf3 {[%clk 0:00:39]}  Rxe3 {[%clk 0:00:48]} 28. Rxe3 {[%clk 0:00:38]}  Ra1+ {[%clk 0:00:38]} 29. Kf2 {[%clk 0:00:37]}  Rb1 {[%clk 0:00:37]} 30. b4 {[%clk 0:00:35]}  Be6 {[%clk 0:00:34]} 31. Re4 {[%clk 0:00:18]}  Bxd5 {[%clk 0:00:22]} 32. cxd5 {[%clk 0:00:19]}  Kg7 {[%clk 0:00:22]} 33. Ke3 {[%clk 0:00:18]}  Kf6 {[%clk 0:00:21]} 34. Kd3 {[%clk 0:00:18]}  Rb3+ {[%clk 0:00:18]} 35. Kc4 {[%clk 0:00:18]}  Rxf3 {[%clk 0:00:18]} 36. Kb5 {[%clk 0:00:19]}  Rd3 {[%clk 0:00:14]} 37. Kc4 {[%clk 0:00:17]}  Rd1 {[%clk 0:00:14]} 38. Kb5 {[%clk 0:00:10]}  Rxd5+ {[%clk 0:00:12]} 39. Kb6 {[%clk 0:00:11]}  Re5 {[%clk 0:00:11]} 40. Rf4+ {[%clk 0:00:10]}  Ke6 {[%clk 0:00:07]} 41. Kxb7 {[%clk 0:00:09]}  f5 {[%clk 0:00:08]} 42. Kc6 {[%clk 0:00:09]}  g5 {[%clk 0:00:08]} 43. Rd4 {[%clk 0:00:08]}  f4 {[%clk 0:00:05]} 44. Rxd6+ {[%clk 0:00:08]}  Kf5 {[%clk 0:00:06]} 45. Rd8 {[%clk 0:00:08]}  Kg4 {[%clk 0:00:05]} 46. b5 {[%clk 0:00:08]}  f3 {[%clk 0:00:05]} 47. b6 {[%clk 0:00:09]}  f2 {[%clk 0:00:06]} 48. Rf8 {[%clk 0:00:08]}  Rf5 {[%clk 0:00:06]} 49. Rxf5 {[%clk 0:00:08]}  Kxf5 {[%clk 0:00:07]} 50. b7 {[%clk 0:00:09]}  f1=Q {[%clk 0:00:08]} 51. b8=Q {[%clk 0:00:09]}  Qf3+ {[%clk 0:00:08]} 52. Kd7 {[%clk 0:00:09]}  Qd3+ {[%clk 0:00:08]} 53. Ke7 {[%clk 0:00:08]}  Qe4+ {[%clk 0:00:09]} 54. Kf8 {[%clk 0:00:07]}  Qe5 {[%clk 0:00:08]} 55. Qc8+ {[%clk 0:00:06]}  Kf4 {[%clk 0:00:07]} 56. Qc1+ {[%clk 0:00:06]}  Kg4 {[%clk 0:00:07]} 57. Qg1+ {[%clk 0:00:05]}  Kf5 {[%clk 0:00:07]} 58. Qb1+ {[%clk 0:00:03]}  Qe4 {[%clk 0:00:07]} 59. Qf1+ {[%clk 0:00:03]}  Qf4 {[%clk 0:00:07]} 60. Qb5+ {[%clk 0:00:03]}  Kg4+ {[%clk 0:00:07]} 61. Kg8 {[%clk 0:00:03]}  h5 {[%clk 0:00:08]} 62. Qd7+ {[%clk 0:00:02]}  Qf5 {[%clk 0:00:08]} 63. Qd1+ {[%clk 0:00:03]}  Qf3 {[%clk 0:00:07]} 64. Qg1+ {[%clk 0:00:03]}  Kf4 {[%clk 0:00:07]} 65. Qd4+ {[%clk 0:00:03]}  Qe4 {[%clk 0:00:08]} 66. Qf2+ {[%clk 0:00:04]}  Ke5 {[%clk 0:00:08]} 67. Qg3+ {[%clk 0:00:04]}  Qf4 {[%clk 0:00:08]} 68. Qc3+ {[%clk 0:00:05]}  Kf5 {[%clk 0:00:08]} 69. Qc8+ {[%clk 0:00:04]}  Ke4 {[%clk 0:00:08]} 70. Qc4+ {[%clk 0:00:05]}  Kf3 {[%clk 0:00:09]} 71. Qf1+ {[%clk 0:00:05]}  Ke3 {[%clk 0:00:08]} 72. Qe1+ {[%clk 0:00:05]}  Kd4 {[%clk 0:00:08]} 73. Qd1+ {[%clk 0:00:06]}  Kc5 {[%clk 0:00:08]} 74. Qxh5 {[%clk 0:00:06]}  Kd4 {[%clk 0:00:08]} 75. Kh7 {[%clk 0:00:06]}  Ke4 {[%clk 0:00:08]} 76. Kh6 {[%clk 0:00:06]}  Ke5 {[%clk 0:00:05]} 77. Qxg5+ {[%clk 0:00:06]}  Qxg5+ {[%clk 0:00:05]} 78. Kxg5 {[%clk 0:00:06]}  Ke6 {[%clk 0:00:06]} 79. Kg6 {[%clk 0:00:07]}  Ke7 {[%clk 0:00:06]} 80. Kg7 {[%clk 0:00:07]}  Ke6 {[%clk 0:00:07]} 81. h4 {[%clk 0:00:08]}  Kf5 {[%clk 0:00:08]} 82. h5 {[%clk 0:00:09]}  Kg5 {[%clk 0:00:08]} 83. h6 {[%clk 0:00:10]} 1-0


[Site "https://www.chess.com"]

[Event "Titled Tuesday Blitz April 4 Early 2023"]
[White "Bruedigam, Martin"]
[Black "MunichMouse"]
[WhiteFideId "24608033"]
[WhiteElo "2331"]
[BlackElo "2309"]
[Result "1-0"]
[Round "02"]
[TimeControl "180+2"]
[Date "2023.04.04"]
[WhiteClock "0:00:36"]
[BlackClock "0:00:01"]

1. d4 {[%clk 0:03:00]}  Nf6 {[%clk 0:02:59]} 2. c4 {[%clk 0:03:00]}  g6 {[%clk 0:03:00]} 3. f3 {[%clk 0:03:00]}  Bg7 {[%clk 0:03:01]} 4. e4 {[%clk 0:03:00]}  d6 {[%clk 0:03:02]} 5. Nc3 {[%clk 0:03:00]}  O-O {[%clk 0:03:02]} 6. Be3 {[%clk 0:03:00]}  Nbd7 {[%clk 0:03:03]} 7. Qd2 {[%clk 0:02:58]}  c5 {[%clk 0:03:04]} 8. Nge2 {[%clk 0:02:54]}  a6 {[%clk 0:03:03]} 9. a4 {[%clk 0:02:52]}  Qa5 {[%clk 0:03:02]} 10. d5 {[%clk 0:02:38]}  Ne5 {[%clk 0:02:58]} 11. Nc1 {[%clk 0:02:32]}  Nh5 {[%clk 0:02:48]} 12. Be2 {[%clk 0:02:26]}  f5 {[%clk 0:02:46]} 13. O-O {[%clk 0:02:23]}  Bd7 {[%clk 0:02:40]} 14. Qc2 {[%clk 0:02:16]}  f4 {[%clk 0:02:33]} 15. Bf2 {[%clk 0:02:13]}  g5 {[%clk 0:02:34]} 16. Nb3 {[%clk 0:02:07]}  Qd8 {[%clk 0:02:32]} 17. a5 {[%clk 0:02:07]}  Qe8 {[%clk 0:02:25]} 18. Nd2 {[%clk 0:01:52]}  Nf6 {[%clk 0:01:48]} 19. Na4 {[%clk 0:01:50]}  g4 {[%clk 0:01:36]} 20. Nb6 {[%clk 0:01:48]}  gxf3 {[%clk 0:01:35]} 21. Bxf3 {[%clk 0:01:47]}  Nxf3+ {[%clk 0:01:26]} 22. Nxf3 {[%clk 0:01:45]}  Ng4 {[%clk 0:01:17]} 23. h3 {[%clk 0:01:33]}  Nxf2 {[%clk 0:01:13]} 24. Rxf2 {[%clk 0:01:34]}  Rd8 {[%clk 0:01:11]} 25. Nxd7 {[%clk 0:01:31]}  Rxd7 {[%clk 0:01:10]} 26. e5 {[%clk 0:01:31]}  dxe5 {[%clk 0:01:06]} 27. Qe4 {[%clk 0:01:28]}  Qh5 {[%clk 0:01:01]} 28. Re1 {[%clk 0:01:26]}  Rf5 {[%clk 0:01:01]} 29. b4 {[%clk 0:01:21]}  Rd6 {[%clk 0:00:42]} 30. bxc5 {[%clk 0:01:14]}  Rg6 {[%clk 0:00:42]} 31. Nh4 {[%clk 0:01:08]}  Rfg5 {[%clk 0:00:26]} 32. Nxg6 {[%clk 0:01:07]}  Rxg6 {[%clk 0:00:27]} 33. Rf3 {[%clk 0:00:59]}  Qg5 {[%clk 0:00:20]} 34. Re2 {[%clk 0:00:58]}  Qf6 {[%clk 0:00:17]} 35. Rd2 {[%clk 0:00:58]}  Bf8 {[%clk 0:00:16]} 36. Rfd3 {[%clk 0:00:55]}  Qh4 {[%clk 0:00:03]} 37. d6 {[%clk 0:00:48]}  exd6 {[%clk 0:00:03]} 38. cxd6 {[%clk 0:00:48]}  Qd8 {[%clk 0:00:01]} 39. Qxb7 {[%clk 0:00:36]} 1-0


[Site "https://www.chess.com"]